bitfinex-derivatives/quotes_ETHF0:USTF0_20251117
["timestamp","ask_amount","ask_price","bid_price","bid_amount"]
[1763404072724,0.54963429,3037.5,3036.9,0.00708312]
[1763404073123,0.54963429,3037.5,3036.9,3.21488312]
[1763404073810,0.5473684,3038.4,3037.4,3.2078]
[1763404074021,0.5473684,3038.4,3037.9,3.2078]
[1763404074422,0.0026684,3038.4,3038.3,3.2078]
[1763404074617,0.0026684,3038.4,3037.9,3.2078]
[1763404074818,0.5473684,3038.4,3037.5,3.2078]
[1763404075028,0.5473684,3038.4,3036.9,0.00708312]
[1763404075029,0.5473684,3038.4,3037.9,3.2078]
[1763404077126,0.0026684,3038.4,3037.9,3.2078]
[1763404077722,0.4271,3037.6,3035.8,3.2078]
[1763404077925,3.2078,3036.4,3035.2,3.2078]
[1763404078121,3.2078,3036.0,3035.2,3.2078]
[1763404078321,3.2078,3036.4,3035.2,3.2078]
[1763404078517,3.2078,3036.4,3035.7,0.4655]
[1763404078829,3.21637495,3036.4,3036.2,0.53403]
[1763404079032,0.00857495,3036.4,3036.2,0.53403]
[1763404079221,0.00857495,3036.4,3036.2,9.82683]
[1763404079421,3.2078,3037.5,3037.3,0.53384]
[1763404079631,3.2078,3038.1,3037.5,0.5338]
[1763404079933,3.2078,3037.7,3037.5,0.5338]
[1763404080229,3.2078,3037.7,3036.6,0.5128]
[1763404080433,3.2078,3037.7,3036.8,0.00493429]
[1763404080434,0.52913429,3037.5,3036.8,0.00493429]
[1763404080626,3.2078,3036.9,3036.4,0.534]
[1763404080934,3.2078,3036.9,3036.1,3.2078]
[1763404081122,3.2078,3037.3,3037.2,0.53386]
[1763404081428,3.21100058,3037.7,3037.6,0.53379]
[1763404081728,3.2078,3038.2,3038.0,0.53371]
[1763404081936,3.2078,3038.2,3037.4,3.2078]
[1763404082225,3.2078,3038.2,3037.8,3.74155]
[1763404082432,0.5447,3039.2,3038.1,0.5337]
[1763404082433,0.00493429,3038.3,3038.1,0.5337]
[1763404082620,3.21584289,3038.3,3038.1,0.00269775]
[1763404083028,9.21584289,3038.3,3037.7,0.00493429]
[1763404083230,3.2078,3037.8,3037.7,0.00493429]
[1763404083431,3.2078,3037.8,3036.6,3.2078]
[1763404083737,0.00804289,3038.3,3036.0,3.2078]
[1763404083738,3.2078,3036.7,3036.0,3.2078]
[1763404084030,0.5242,3037.5,3036.4,3.2078]
[1763404084232,3.2078,3036.5,3034.6,3.2078]
[1763404084430,3.2078,3036.0,3034.6,3.2078]
[1763404084635,0.00493429,3036.1,3035.9,0.53409]
[1763404084840,3.2078,3037.2,3035.9,3.2078]
[1763404085137,3.2078,3037.2,3036.0,7.4438]
[1763404085338,0.5242,3036.6,3036.0,11.56145345]
[1763404085531,0.5242,3036.6,3036.2,0.53404]
[1763404085731,3.2078,3036.3,3036.0,0.00365345]
[1763404087143,3.2078,3036.3,3035.2,0.00493429]
[1763404087434,3.2078,3035.5,3035.3,0.53418]
[1763404087736,3.2078,3035.9,3035.2,0.00493429]
[1763404087924,3.2078,3035.9,3035.2,0.53914429]
[1763404088131,3.2078,3035.9,3035.2,0.54288175]
[1763404088337,3.2078,3035.9,3035.2,0.00867175]
[1763404088533,3.2078,3035.5,3035.2,0.00867175]
[1763404090036,3.2078,3035.5,3035.3,0.53419]
[1763404090334,3.2078,3035.5,3035.2,0.00867175]
[1763404093028,3.2078,3035.5,3034.3,3.2078]
[1763404093231,3.2078,3034.4,3033.8,3.2078]
[1763404093425,3.732,3034.8,3034.4,0.53435]
[1763404093631,3.732,3034.8,3033.8,3.2078]
[1763404093632,3.2078,3034.8,3033.8,3.2078]
[1763404093832,0.5242,3035.7,3034.2,3.2078]
[1763404093833,3.2078,3035.2,3034.2,3.2078]
[1763404094042,3.21184063,3035.2,3034.5,3.2078]
[1763404094330,0.00898313,3035.2,3035.1,0.53423]
[1763404094924,0.00898313,3035.2,3034.7,3.2078]
[1763404095129,0.00898313,3035.2,3034.9,0.53425]
[1763404095329,3.2078,3035.1,3034.4,0.0049425]
[1763404095525,3.2078,3035.1,3034.5,0.53434]
[1763404095725,3.2078,3035.1,3034.4,0.0049425]
[1763404096135,0.53318313,3035.2,3034.4,0.0049425]
[1763404096136,3.2078,3034.7,3034.4,0.0049425]
[1763404097136,3.2078,3034.7,3034.4,4.25e-05]
[1763404099338,0.6082,3034.4,3033.7,0.03296359]
[1763404099640,3.2078,3034.3,3033.7,0.56744359]
[1763404099841,3.2078,3034.3,3033.7,0.03296359]
[1763404100335,0.6082,3034.4,3033.7,0.00380489]
[1763404100336,3.2078,3033.9,3033.7,0.00380489]
[1763404101641,3.2078,3033.8,3033.0,3.2078]
[1763404101838,0.0049425,3033.7,3033.6,0.5345]
[1763404102546,0.0049425,3033.7,3033.6,0.53790164]
[1763404102847,0.0049425,3033.7,3033.6,0.00340164]
[1763404103540,3.2127425,3033.7,3033.6,0.00340164]
[1763404103741,0.6082,3033.6,3032.4,3.47357786]
[1763404103941,0.6082,3033.6,3032.8,3.2078]
[1763404104244,0.0049425,3033.7,3033.4,0.53453]
[1763404104443,3.816,3033.6,3033.5,0.53451]
[1763404104651,0.0049425,3033.7,3033.6,0.5345]
[1763404104845,0.0049425,3033.7,3033.6,0.53795852]
[1763404105248,0.52824063,3035.2,3033.6,6.00345852]
[1763404105451,0.00404063,3035.2,3035.1,3.2078]
[1763404105641,0.00404063,3035.2,3034.7,4.3613]
[1763404105842,0.00404063,3035.2,3034.6,3.2078]
[1763404106041,0.00404063,3035.2,3034.9,0.53425]
[1763404106251,0.00404063,3035.2,3034.7,0.0049425]
[1763404106746,3.2078,3035.1,3034.7,0.0049425]
[1763404106942,0.00404063,3035.2,3034.9,0.53426]
[1763404107144,0.62954063,3035.2,3034.7,0.0049425]
[1763404107453,3.2078,3034.9,3034.7,0.0049425]
[1763404108353,3.83734063,3035.2,3034.7,0.0049425]
[1763404109750,3.83734063,3035.2,3034.7,0.5392425]
[1763404109949,1.68336586,3036.4,3034.7,0.5392425]
[1763404109950,3.2078,3036.1,3035.0,3.2078]
[1763404110148,3.2078,3036.1,3035.5,0.53416]
[1763404110351,3.2078,3035.7,3035.3,6.759]
[1763404110556,3.2078,3035.7,3034.7,0.0049425]
[1763404110855,3.2078,3035.7,3035.0,3.2078]
[1763404111050,0.6255,3035.2,3034.7,0.0049425]
[1763404111547,3.21551973,3035.7,3034.9,0.53427]
[1763404111754,3.21551973,3035.7,3035.0,3.2078]
[1763404112656,3.2078,3035.1,3033.6,0.00345852]
[1763404112842,3.2078,3033.9,3033.7,0.53448]
[1763404113047,3.2078,3033.9,3033.6,0.00345852]
[1763404115662,3.2078,3033.9,3033.8,0.53446]
[1763404116158,3.2078,3033.9,3033.6,0.53794852]
[1763404116359,3.2078,3033.9,3033.8,0.53446]
[1763404116559,3.2078,3033.9,3033.8,8.90146]
[1763404117054,3.2078,3033.9,3033.8,8.367]
[1763404117256,0.6255,3035.2,3034.4,0.53435]
[1763404117257,3.2078,3034.5,3034.4,0.53435]
[1763404117560,3.2078,3035.1,3034.2,3.2078]
[1763404117859,3.2078,3035.1,3034.6,3.74212]
[1763404118060,3.2078,3035.1,3034.4,0.53435]
[1763404118358,0.0049425,3035.1,3034.5,6.429]
[1763404118659,0.0049425,3035.1,3034.7,3.2078]
[1763404118863,0.0049425,3035.1,3034.8,0.53427]
[1763404119059,0.0049425,3035.1,3035.0,0.53425]
[1763404119262,0.0049425,3035.1,3034.9,8.365]
[1763404119454,3.2078,3035.0,3034.1,3.2078]
[1763404119655,3.2078,3035.0,3034.2,8.365]
[1763404119856,0.6255,3034.4,3034.2,8.89939]
[1763404120160,0.6255,3034.4,3034.1,3.2078]
[1763404120359,0.6255,3034.4,3034.3,0.53437]
[1763404120556,0.6255,3034.4,3034.3,8.362]
[1763404120862,0.6255,3034.4,3034.3,8.361]
[1763404121061,0.6255,3034.4,3034.3,8.36]
[1763404121764,0.6255,3034.4,3034.3,8.358]
[1763404121967,0.6255,3034.4,3034.1,3.2078]
[1763404122157,0.6255,3034.4,3034.2,8.357]
[1763404122759,3.2078,3035.0,3034.2,8.357]
[1763404123264,3.2078,3035.0,3034.6,0.53432]
[1763404123568,3.2078,3035.0,3034.7,8.354]
[1763404124065,0.0049425,3035.1,3034.8,8.352]
[1763404124457,0.0049425,3035.1,3034.5,3.2078]
[1763404124761,0.0049425,3035.1,3034.9,8.352]
[1763404125865,0.0049425,3035.1,3035.0,8.35]
[1763404126163,0.0049425,3035.1,3035.0,8.88425]
[1763404126356,0.0049425,3035.1,3035.0,3.74205]
[1763404126557,0.0049425,3035.1,3035.0,11.39405]
[1763404126962,0.0049425,3035.1,3035.0,11.5548]
[1763404127164,0.0049425,3035.1,3034.8,3.2078]
[1763404127359,0.0049425,3035.1,3035.0,8.347]
[1763404127561,0.0049425,3035.1,3034.5,0.53433]
[1763404127762,0.0049425,3035.1,3034.7,0.53429]
[1763404127963,0.0049425,3035.1,3034.4,3.2078]
[1763404128163,0.0049425,3035.1,3034.5,8.346]
[1763404128369,3.2078,3034.9,3034.4,3.2078]
[1763404128669,3.2078,3034.9,3034.5,8.345]
[1763404128875,3.2078,3034.9,3034.4,3.2078]
[1763404129373,3.2078,3034.9,3034.5,8.344]
[1763404129563,3.2078,3034.9,3034.4,3.2078]
[1763404129564,3.2078,3034.9,3034.0,3.2078]
[1763404129761,0.6255,3034.4,3034.0,3.2078]
[1763404129963,0.6255,3034.4,3034.1,8.342]
[1763404130176,3.2078,3035.0,3034.4,0.53434]
[1763404130367,3.2078,3035.0,3034.2,0.53438]
[1763404130573,0.6255,3034.4,3034.0,3.2078]
[1763404130780,3.2078,3035.0,3034.5,0.53433]
[1763404130985,3.2078,3035.0,3034.5,3.2078]
[1763404131478,3.2078,3035.0,3034.6,8.34]
[1763404131679,3.2078,3035.0,3034.5,0.53434]
[1763404132081,3.2078,3035.0,3034.6,8.339]
[1763404132678,3.2078,3035.0,3034.7,8.339]
[1763404132879,3.2078,3035.0,3034.7,8.8733]
[1763404133077,0.0049425,3035.1,3034.7,8.8733]
[1763404133280,0.0049425,3035.1,3034.7,8.339]
[1763404133482,0.0049425,3035.1,3034.7,8.8733]
[1763404133684,0.0049425,3035.1,3034.7,8.339]
[1763404133885,0.0049425,3035.1,3034.5,3.2078]
[1763404134091,0.0049425,3035.1,3034.6,8.339]
[1763404134287,0.0049425,3035.1,3034.7,8.339]
[1763404134589,0.0049425,3035.1,3034.5,3.2078]
[1763404134790,0.0049425,3035.1,3034.8,8.339]
[1763404134988,0.0049425,3035.1,3034.5,3.74214]
[1763404135183,3.2078,3034.8,3034.1,4.94695329]
[1763404135378,3.2078,3034.8,3034.6,8.339]
[1763404135583,0.0049425,3035.1,3034.6,8.339]
[1763404135889,0.0049425,3035.1,3034.6,8.87332]
[1763404136088,0.0049425,3035.1,3034.7,0.5343]
[1763404136392,0.0049425,3035.1,3034.6,8.87331]
[1763404136583,0.0049425,3035.1,3034.7,0.5343]
[1763404136784,0.0049425,3035.1,3034.6,8.339]
[1763404137089,0.0049425,3035.1,3034.7,0.5343]
[1763404137291,0.0049425,3035.1,3034.6,8.339]
[1763404137491,0.0049425,3035.1,3034.6,8.87332]
[1763404137885,3.2078,3034.7,3034.2,1.73915329]
[1763404138084,0.557,3034.5,3034.3,8.339]
[1763404138395,0.557,3034.5,3034.4,0.53435]
[1763404138605,0.0049425,3035.1,3034.4,0.53434]
[1763404138897,0.0049425,3035.1,3034.7,0.5343]
[1763404139188,0.0049425,3035.1,3034.6,3.2078]
[1763404139699,0.0049425,3035.1,3034.7,0.5343]
[1763404140187,0.0049425,3035.1,3034.3,1.73915329]
[1763404140493,0.557,3034.5,3034.4,8.87335]
[1763404141192,0.557,3034.5,3034.4,0.53435]
[1763404141385,0.557,3034.5,3034.4,8.339]
[1763404141593,0.557,3034.5,3033.9,3.74223]
[1763404141783,0.557,3034.5,3034.2,0.53438]
[1763404142385,0.557,3034.5,3034.3,8.339]
[1763404143183,0.557,3034.5,3034.1,0.53441]
[1763404143495,0.557,3034.5,3034.2,0.53439]
[1763404143689,3.2127425,3035.1,3034.4,3.2078]
[1763404144196,0.0049425,3035.1,3035.0,0.53425]
[1763404144389,0.0049425,3035.1,3035.0,8.87225]
[1763404145387,0.0049425,3035.1,3035.0,10.61140329]
[1763404145582,0.0049425,3035.1,3035.0,2.27340329]
[1763404145786,0.0049425,3035.1,3035.0,10.61140329]
[1763404146192,0.0049425,3035.1,3035.0,1.73915329]
[1763404146394,0.0049425,3035.1,3034.6,1.73915329]
[1763404146588,0.0049425,3035.1,3034.7,8.338]
[1763404146994,0.0049425,3035.1,3034.7,8.87229]
[1763404147496,0.0049425,3035.1,3034.7,8.338]
[1763404147892,0.0049425,3035.1,3035.0,0.53425]
[1763404148291,0.0049425,3035.1,3034.7,1.73915329]
[1763404148488,0.0049425,3035.1,3034.8,8.338]
[1763404149490,0.0049425,3035.1,3034.6,0.53432]
[1763404149789,0.0049425,3035.1,3034.9,8.338]
[1763404149993,0.557,3034.5,3034.3,4.94695329]
[1763404150197,0.557,3034.5,3034.4,8.338]
[1763404150788,3.2078,3035.0,3034.3,4.94695329]
[1763404150988,0.557,3034.5,3034.3,3.2078]
[1763404151194,0.557,3034.5,3034.4,8.87135]
[1763404151394,0.557,3034.5,3034.4,8.337]
[1763404151693,0.557,3034.5,3034.4,0.53435]
[1763404152003,0.557,3034.5,3034.4,8.337]
[1763404152296,0.557,3034.5,3034.4,8.87135]
[1763404152495,0.0049425,3035.1,3034.5,0.53432]
[1763404152797,0.0049425,3035.1,3034.7,3.2078]
[1763404153692,0.0049425,3035.1,3034.8,8.337]
[1763404154403,0.0049425,3035.1,3034.2,40.8]
[1763404154404,0.557,3034.8,3034.3,4.94695329]
[1763404154596,0.557,3034.8,3034.4,8.87134]
[1763404154895,0.0049425,3035.1,3034.7,3.2078]
[1763404155391,0.557,3034.8,3034.4,1.73915329]
[1763404155896,0.557,3034.8,3034.3,4.94695329]
[1763404156197,0.9608,3034.5,3034.4,7.592]
[1763404156397,0.557,3034.8,3033.9,3.2078]
[1763404156398,1.5178,3034.2,3033.9,3.2078]
[1763404156700,1.5178,3034.2,3034.0,8.337]
[1763404156894,1.5178,3034.2,3033.9,3.2078]
[1763404157197,0.9608,3033.7,3033.5,3.2078]
[1763404157389,0.9299,3033.5,3033.4,0.0049425]
[1763404157789,0.5515,3033.6,3033.4,0.0049425]
[1763404158501,0.55501684,3033.6,3033.4,0.00807474]
[1763404159601,0.557,3034.2,3033.6,0.53448]
[1763404159899,0.557,3034.2,3033.4,3.21587474]
[1763404160102,0.557,3034.2,3033.7,0.53448]
[1763404160294,0.557,3034.2,3033.5,8.337]
[1763404160489,0.557,3034.2,3033.4,3.21587474]
[1763404160490,0.56109526,3034.2,3033.4,3.21587474]
[1763404160794,3.2078,3034.1,3033.4,3.21587474]
[1763404161198,3.2078,3034.1,3033.5,8.337]
[1763404161393,3.2078,3033.7,3033.4,0.00807474]
[1763404162796,3.2078,3033.7,3032.6,4.94695329]
[1763404162797,0.5515,3033.1,3032.6,5.094]
[1763404163096,3.2078,3033.0,3032.2,5.03759487]
[1763404163403,0.5515,3033.1,3032.2,5.03759487]
[1763404163404,0.5515,3032.4,3032.2,3.29844158]
[1763404163704,0.5515,3032.4,3032.2,3.30108515]
[1763404164802,0.5515,3032.4,3032.2,0.09328515]
[1763404165097,0.5515,3032.4,3031.4,0.26631571]
[1763404165098,0.3747,3031.0,3030.7,1.76772563]
[1763404165290,0.5515,3031.7,3030.3,0.64306315]
[1763404165291,3.2078,3030.8,3030.3,0.64306315]
[1763404165497,3.2078,3030.4,3030.3,0.5618]
[1763404165898,3.2078,3030.4,3029.6,0.5618]
[1763404166102,3.2078,3029.7,3029.6,0.5655604]
[1763404166599,3.2078,3029.7,3029.6,0.0037604]
[1763404166989,9.2078,3029.7,3028.9,0.5618]
[1763404167299,3.2078,3029.0,3028.9,0.5618]
[1763404167492,3.2078,3029.0,3028.7,0.01331699]
[1763404167690,3.2078,3028.6,3028.0,0.6356]
[1763404167898,2.4100192,3028.6,3028.4,0.53541]
[1763404168196,0.00371474,3030.4,3029.6,0.6356]
[1763404168197,3.21151474,3030.4,3029.6,0.6356]
[1763404168402,0.00495107,3030.3,3029.6,0.6356]
[1763404168598,3.2078,3030.0,3029.6,0.6356]
[1763404168794,3.2078,3030.0,3029.2,0.53526]
[1763404168998,3.2078,3030.0,3029.6,0.6356]
[1763404169196,0.00495107,3030.3,3030.1,0.5351]
[1763404169405,0.00371474,3030.4,3030.1,0.5351]
[1763404169601,3.2078,3030.9,3030.4,0.6356]
[1763404169806,13.56036586,3033.1,3031.2,0.6356]
[1763404169807,3.2078,3031.7,3031.2,0.6356]
[1763404170701,3.21199829,3031.7,3031.2,0.63840399]
[1763404171502,3.2078,3031.3,3031.2,0.00280399]
[1763404171700,3.21199829,3031.7,3031.2,0.63840399]
[1763404172705,0.00419829,3031.7,3031.4,3.74268]
[1763404173012,0.00419829,3031.7,3031.4,3.2078]
[1763404173209,3.2078,3033.0,3032.1,0.6356]
[1763404173512,3.2078,3032.6,3032.1,0.6356]
[1763404173699,3.2078,3032.2,3032.1,0.6356]
[1763404173902,3.2078,3032.6,3032.1,0.6356]
[1763404174112,3.2078,3033.0,3032.1,0.6356]
[1763404174316,3.2106886,3032.6,3032.1,0.6356]
[1763404174702,3.2106886,3032.6,3030.8,11.88]
[1763404174703,3.2078,3032.2,3030.8,3.2078]
[1763404174906,3.2078,3031.5,3030.3,3.2078]
[1763404175211,3.2078,3031.5,3030.3,3.74288]
[1763404175411,3.2078,3031.5,3030.3,3.2078]
[1763404175615,3.2078,3031.5,3030.4,1.17065]
[1763404175814,3.2078,3031.5,3031.0,0.00495107]
[1763404177308,3.2078,3031.5,3031.0,0.53991107]
[1763404177506,3.2078,3031.5,3031.0,0.00495107]
[1763404177911,3.2078,3031.5,3031.2,0.00280399]
[1763404179118,3.2078,3031.5,3030.4,0.6356]
[1763404179314,3.2078,3030.5,3029.5,7.9668]
[1763404179511,3.2078,3030.5,3030.4,0.6356]
[1763404180019,3.2078,3030.5,3029.6,1.17081]
[1763404180210,3.2078,3030.1,3029.6,1.17081]
[1763404180410,3.2078,3030.1,3029.6,0.6356]
[1763404180817,3.2078,3030.5,3030.4,0.6356]
[1763404181117,3.2078,3030.5,3029.7,3.2078]
[1763404181312,3.2078,3030.1,3029.7,3.2078]
[1763404181518,3.2078,3030.5,3030.4,0.6356]
[1763404182318,3.2078,3030.9,3030.4,0.6356]
[1763404182716,3.2078,3030.5,3030.4,0.6356]
[1763404183018,3.2078,3030.5,3029.7,11.5528]
[1763404183213,3.92436586,3032.3,3029.7,3.2078]
[1763404183214,3.2078,3030.1,3029.7,3.2078]
[1763404183920,0.00495107,3030.4,3029.7,3.2078]
[1763404184220,0.00495107,3030.4,3029.8,0.53517]
[1763404184903,0.00495107,3030.4,3029.9,0.53515]
[1763404185518,0.00495107,3030.4,3029.8,0.53517]
[1763404185706,0.00495107,3030.4,3029.8,8.88017]
[1763404185905,0.00495107,3030.4,3029.9,0.53515]
[1763404186210,3.2078,3030.9,3030.3,0.53508]
[1763404186421,3.2078,3031.3,3031.2,0.6356]
[1763404186715,3.2078,3031.3,3030.4,0.6356]
[1763404186916,3.2078,3031.3,3030.4,1.17066]
[1763404187122,3.2078,3030.9,3030.4,0.6356]
[1763404187417,3.2078,3030.9,3030.2,3.2078]
[1763404187418,3.2078,3030.9,3030.3,0.6356]
[1763404188014,3.2078,3030.5,3030.3,0.6356]
[1763404188520,3.2078,3030.5,3029.8,3.2078]
[1763404188722,3.2078,3030.5,3029.6,3.1286]
[1763404189018,3.2078,3030.5,3029.6,0.6356]
[1763404189420,3.21167403,3030.5,3029.7,0.53519]
[1763404189618,3.21167403,3030.5,3029.6,0.6393085]
[1763404190116,3.21167403,3030.5,3029.8,3.2078]
[1763404190316,0.00495107,3030.4,3030.3,0.6356]
[1763404192821,0.79415785,3030.4,3030.3,0.6356]
[1763404195324,1.90534492,3030.4,3029.7,0.00495107]
[1763404195519,3.2078,3029.8,3029.7,0.00495107]
[1763404195724,3.99700678,3029.8,3029.7,0.00495107]
[1763404196427,0.78920678,3029.8,3029.7,0.00495107]
[1763404196830,0.78920678,3029.9,3029.7,0.00495107]
[1763404197123,0.78920678,3029.8,3029.7,0.00495107]
[1763404197528,3.99700678,3029.8,3028.8,0.6356]
[1763404197725,3.2078,3029.0,3028.8,0.6356]
[1763404197919,3.2078,3029.4,3028.8,0.6356]
[1763404198124,3.2078,3029.0,3028.8,0.6356]
[1763404198322,0.79037936,3028.9,3028.8,0.6356]
[1763404198520,0.79037936,3028.9,3028.8,0.63985969]
[1763404198720,0.79037936,3028.9,3028.8,0.00425969]
[1763404200336,7.93743743,3028.9,3027.0,3.2078]
[1763404200543,7.93743743,3028.9,3026.5,11.888]
[1763404200544,3.2078,3027.9,3026.6,3.47674038]
[1763404200835,4.35485807,3028.4,3027.4,3.2078]
[1763404201022,0.78667838,3028.3,3028.2,0.5832]
[1763404201536,0.79028198,3028.3,3028.2,0.58741831]
[1763404201725,0.00495107,3028.5,3028.2,9.79521831]
[1763404201934,0.00495107,3028.5,3028.2,3.79521831]
[1763404202132,0.00495107,3028.5,3028.4,0.53542]
[1763404202435,3.2078,3029.5,3028.9,0.5832]
[1763404202736,3.2078,3029.0,3028.9,0.5832]
[1763404203229,0.00495107,3029.3,3028.9,0.5832]
[1763404203425,3.2078,3029.1,3028.9,0.5832]
[1763404203625,0.00495107,3029.3,3028.9,0.5832]
[1763404204034,0.00495107,3029.3,3029.0,0.53531]
[1763404204226,0.00495107,3029.3,3028.9,0.5832]
[1763404204432,1.72058711,3030.1,3028.9,0.5832]
[1763404204433,1.14705807,3030.2,3029.8,0.53517]
[1763404204633,3.2078,3030.3,3029.7,0.53519]
[1763404205227,0.34277018,3030.7,3030.2,3.2078]
[1763404205422,0.00300695,3030.7,3030.4,0.53506]
[1763404205729,0.00300695,3030.7,3030.4,0.00359379]
[1763404206147,3.2078,3031.8,3031.2,0.5832]
[1763404206435,3.2078,3031.4,3030.4,0.00359379]
[1763404206637,3.2078,3030.6,3030.4,0.00359379]
[1763404207242,3.21090525,3030.6,3030.4,0.00359379]
[1763404207539,3.21090525,3030.6,3029.3,3.2078]
[1763404207540,1.72058711,3030.5,3029.3,3.2078]
[1763404207740,3.21090525,3030.6,3029.3,3.2078]
[1763404207741,3.2078,3030.4,3029.3,3.2078]
[1763404207931,3.2078,3030.4,3029.7,3.2078]
[1763404208529,3.2078,3030.0,3029.7,0.00747179]
[1763404208838,3.2078,3030.0,3029.1,3.2078]
[1763404209037,3.2078,3029.4,3028.7,3.2078]
[1763404209635,3.2078,3029.4,3028.7,3.21150495]
[1763404209838,3.2078,3029.4,3028.7,3.21645602]
[1763404210239,4.92838711,3029.8,3028.7,3.75181602]
[1763404210438,3.2078,3029.4,3028.7,3.21645602]
[1763404210841,3.2078,3029.8,3029.1,3.2078]
[1763404211042,3.2078,3030.2,3029.6,0.5832]
[1763404211231,3.21090525,3030.6,3029.9,3.2078]
[1763404211435,3.21090525,3030.6,3029.9,3.74295]
[1763404211436,0.00310525,3030.6,3029.9,3.74295]
[1763404211634,0.00310525,3030.6,3030.0,0.53513]
[1763404211844,0.00310525,3030.6,3029.9,3.2078]
[1763404212044,3.2078,3030.0,3029.2,3.2078]
[1763404212251,3.2078,3030.4,3029.2,3.2078]
[1763404212441,3.2078,3030.0,3029.2,3.2078]
[1763404212637,3.2078,3029.5,3028.8,4.32634]
[1763404212944,3.2078,3029.1,3028.8,0.5832]
[1763404213142,0.00495107,3029.3,3028.9,3.2078]
[1763404213447,3.21275107,3029.3,3028.7,0.00865602]
[1763404213842,0.78145346,3029.2,3028.7,0.00865602]
[1763404214242,0.78145346,3029.2,3029.1,3.2078]
[1763404214444,0.00495107,3029.3,3029.1,3.2078]
[1763404214647,0.00495107,3029.3,3028.8,0.5832]
[1763404215337,3.21275107,3029.3,3028.7,3.21645602]
[1763404215541,0.78151778,3029.2,3028.7,3.21645602]
[1763404216143,3.2078,3028.9,3028.7,0.00865602]
[1763404216351,0.78151778,3028.8,3028.7,0.00865602]
[1763404217651,0.78151778,3028.8,3027.8,3.2078]
[1763404217652,1.33171778,3028.8,3027.8,3.2078]
[1763404217840,3.2078,3028.5,3027.8,3.2078]
[1763404218042,3.2078,3028.9,3028.2,3.2078]
[1763404218446,3.2078,3028.5,3027.8,3.2078]
[1763404218652,3.2078,3028.5,3027.8,3.21056069]
[1763404219250,3.2078,3027.9,3027.8,0.00276069]
[1763404219443,3.2078,3027.9,3026.5,3.2078]
[1763404219444,3.98818915,3027.9,3026.5,3.2078]
[1763404219747,0.00495107,3027.5,3027.0,3.2078]
[1763404220052,3.2078,3028.3,3027.4,3.74339]
[1763404220355,0.00280333,3028.3,3028.2,3.2078]
[1763404221650,0.00280333,3028.3,3027.4,0.00271607]
[1763404221864,3.2078,3027.6,3027.4,0.00271607]
[1763404222151,3.2078,3027.5,3027.4,0.00271607]
[1763404222354,3.2078,3027.9,3027.4,0.00271607]
[1763404222542,3.2078,3028.0,3027.4,0.00271607]
[1763404222743,0.00280333,3028.3,3027.4,0.00271607]
[1763404222943,0.78219389,3028.3,3027.4,0.00271607]
[1763404223147,0.00280333,3028.3,3027.4,0.00271607]
[1763404223350,0.00280333,3028.3,3027.7,3.2078]
[1763404223746,3.2078,3027.8,3026.9,0.00495107]
[1763404223944,3.2078,3027.0,3026.9,0.00495107]
[1763404224150,3.18906728,3027.0,3026.9,0.00495107]
[1763404224466,3.21060333,3028.3,3027.0,0.53566]
[1763404224652,0.77946565,3028.2,3026.9,0.00495107]
[1763404224843,3.2078,3027.9,3027.3,3.2078]
[1763404225046,3.2078,3027.9,3026.9,0.00893099]
[1763404225047,3.2078,3027.9,3026.9,3.21673099]
[1763404225249,0.00280333,3028.3,3026.9,3.21673099]
[1763404225250,3.21060333,3028.3,3027.3,3.2078]
[1763404225450,0.00280333,3028.3,3027.3,3.2078]
[1763404225647,0.78172052,3028.3,3027.4,0.53559]
[1763404225846,0.78172052,3028.3,3027.3,3.2078]
[1763404226047,3.2078,3028.0,3027.3,3.74341]
[1763404226244,0.00280333,3028.3,3027.3,3.2078]
[1763404226446,3.2078,3028.0,3027.3,3.2078]
[1763404227245,0.00280333,3028.3,3027.7,3.2078]
[1763404227650,3.2078,3028.0,3027.2,3.8474]
[1763404228047,0.00280333,3028.3,3027.4,0.53559]
[1763404228260,0.00280333,3028.3,3027.6,3.2078]
[1763404228456,0.00280333,3028.3,3028.0,3.2078]
[1763404228659,0.00280333,3028.3,3028.2,0.53545]
[1763404228849,0.00495107,3028.6,3028.1,11.6726]
[1763404229155,0.00495107,3028.6,3028.5,3.7432]
[1763404229359,0.00495107,3028.6,3028.5,3.2078]
[1763404229656,0.00495107,3028.6,3028.1,3.2078]
[1763404229954,0.00923467,3028.6,3028.1,3.2078]
[1763404230258,0.00923467,3028.6,3028.2,0.53545]
[1763404230463,0.00923467,3028.6,3028.1,3.2078]
[1763404232163,0.78987783,3028.6,3028.1,3.2078]
[1763404232555,0.78987783,3028.6,3027.6,3.2078]
[1763404233068,0.78987783,3028.6,3028.0,3.2078]
[1763404233259,0.18166099,3030.4,3028.9,3.2078]
[1763404233459,0.689,3031.2,3030.3,3.2078]
[1763404233761,0.53499,3030.8,3030.2,2.917]
[1763404234057,0.689,3031.2,3030.7,3.2078]
[1763404234267,1.22718801,3031.2,3031.1,3.2078]
[1763404234459,0.69226801,3031.2,3031.1,3.2078]
[1763404234661,0.00326801,3031.2,3031.1,3.2078]
[1763404235162,0.69226801,3031.2,3031.1,3.2078]
[1763404235370,6.69226801,3031.2,3031.1,3.2078]
[1763404235567,0.53499,3030.8,3030.7,3.2078]
[1763404235762,0.69226801,3031.2,3030.7,3.2078]
[1763404236061,0.69226801,3031.2,3031.1,3.2078]
[1763404236459,0.69226801,3031.2,3031.1,3.21019478]
[1763404238171,0.00326801,3031.2,3031.1,3.21019478]
[1763404238563,0.53488,3031.4,3031.1,3.21019478]
[1763404238965,0.53486,3031.6,3031.1,3.21019478]
[1763404239166,0.53485,3031.6,3031.5,3.2078]
[1763404239367,0.53485,3031.6,3030.8,0.00495107]
[1763404239368,0.53497,3030.9,3030.8,0.00495107]
[1763404239868,4.17911845,3032.8,3030.8,0.00495107]
[1763404239869,0.6393,3032.8,3030.9,6.0]